bitfinex/quotes_BTCUSD_20250607
["timestamp","ask_amount","ask_price","bid_price","bid_amount"]
[1749304803099,0.01777822,105760.0,105750.0,1.84980806]
[1749304803305,4e-05,105760.0,105750.0,1.84980806]
[1749304803513,0.00949465,105760.0,105750.0,1.44715852]
[1749304803752,4e-05,105760.0,105750.0,1.44715852]
[1749304803965,0.24470244,105760.0,105750.0,1.11953483]
[1749304804201,0.04614047,105760.0,105750.0,1.01468708]
[1749304804416,0.04614047,105760.0,105750.0,1.39312708]
[1749304804915,0.03668001,105760.0,105750.0,1.40258298]
[1749304805136,0.03668001,105760.0,105750.0,1.41203861]
[1749304805352,0.04613511,105760.0,105750.0,1.42933861]
[1749304805570,0.04613511,105760.0,105750.0,1.4293387]
[1749304805995,0.027225,105760.0,105750.0,1.45629433]
[1749304806211,0.02840494,105760.0,105750.0,1.4468387]
[1749304806424,0.0461339,105760.0,105750.0,1.45629433]
[1749304806630,0.03667815,105760.0,105750.0,1.45629433]
[1749304806839,0.04613338,105760.0,105750.0,1.45629433]
[1749304807491,0.02722318,105760.0,105750.0,1.45629433]
[1749304807700,0.01776853,105760.0,105750.0,1.45629433]
[1749304808130,0.01776668,105760.0,105750.0,1.45629433]
[1749304808343,0.01776649,105760.0,105750.0,1.45629433]
[1749304808528,0.01776649,105760.0,105750.0,1.43879433]
[1749304809059,0.01776654,105760.0,105750.0,1.03614479]
[1749304809316,4e-05,105760.0,105750.0,1.43879433]
[1749304809498,0.01776648,105760.0,105750.0,1.43879433]
[1749304809708,0.01776647,105760.0,105750.0,1.43879433]
[1749304809936,4e-05,105760.0,105750.0,1.43879433]
[1749304810134,0.01776649,105760.0,105750.0,1.43879433]
[1749304810551,0.01776649,105760.0,105750.0,1.45629433]
[1749304811197,0.01776419,105760.0,105750.0,1.45629433]
[1749304811403,4e-05,105760.0,105750.0,1.45629433]
[1749304813347,4e-05,105760.0,105750.0,1.57629433]
[1749304815756,4e-05,105760.0,105750.0,1.97894387]
[1749304816773,4e-05,105760.0,105750.0,2.07534335]
[1749304817443,4e-05,105760.0,105750.0,2.11290382]
[1749304819329,4e-05,105760.0,105750.0,2.16903801]
[1749304819532,4e-05,105760.0,105750.0,2.11290382]
[1749304819731,4e-05,105760.0,105750.0,2.50903801]
[1749304819965,4e-05,105760.0,105750.0,2.50910472]
[1749304821830,4e-05,105760.0,105750.0,2.47147754]
[1749304822015,4e-05,105760.0,105750.0,2.50907694]
[1749304822217,4e-05,105760.0,105750.0,2.47147754]
[1749304822451,4e-05,105760.0,105750.0,2.50906809]
[1749304822667,4e-05,105760.0,105750.0,2.53748009]
[1749304823287,4e-05,105760.0,105750.0,2.49988954]
[1749304823948,4e-05,105760.0,105750.0,2.52784844]
[1749304824787,4e-05,105760.0,105750.0,2.56541989]
[1749304828760,4e-05,105760.0,105750.0,2.96806943]
[1749304829161,4e-05,105760.0,105750.0,2.93049798]
[1749304829950,4e-05,105760.0,105750.0,2.52784844]
[1749304830354,4e-05,105760.0,105750.0,2.52384844]
[1749304830774,4e-05,105760.0,105750.0,2.52584844]
[1749304830976,4e-05,105760.0,105750.0,2.52884844]
[1749304833123,4e-05,105760.0,105750.0,2.93149798]
[1749304834631,4e-05,105760.0,105750.0,2.90353908]
[1749304837040,4e-05,105760.0,105750.0,2.50088954]
[1749304837400,4e-05,105760.0,105750.0,2.77336954]
[1749304838854,4e-05,105760.0,105750.0,2.80227497]
[1749304839354,4e-05,105760.0,105750.0,3.20492451]
[1749304839555,4e-05,105760.0,105750.0,3.14879032]
[1749304839758,4e-05,105760.0,105750.0,3.22355614]
[1749304840174,4e-05,105760.0,105750.0,3.22055614]
[1749304840519,4e-05,105760.0,105750.0,2.82255614]
[1749304840738,4e-05,105760.0,105750.0,2.82755614]
[1749304840938,4e-05,105760.0,105750.0,3.22355614]
[1749304841338,4e-05,105760.0,105750.0,3.22955614]
[1749304843605,4.772e-05,105780.0,105770.0,0.21745187]
[1749304843869,4.772e-05,105780.0,105770.0,1.54266243]
[1749304844922,4.772e-05,105780.0,105770.0,1.54366243]
[1749304846195,4.772e-05,105780.0,105770.0,0.73836335]
[1749304846376,4.772e-05,105780.0,105770.0,1.54566243]
[1749304847231,4.772e-05,105780.0,105770.0,1.56326243]
[1749304847439,4.772e-05,105780.0,105770.0,1.54656243]
[1749304848293,4.772e-05,105780.0,105770.0,1.53016243]
[1749304848713,4.772e-05,105780.0,105770.0,1.44140243]
[1749304848945,0.03524772,105780.0,105770.0,1.81932243]
[1749304850852,0.01754772,105780.0,105770.0,1.81932243]
[1749304851067,0.01754772,105780.0,105770.0,2.09176243]
[1749304857441,0.01744772,105780.0,105770.0,2.09176243]
[1749304861336,0.01744772,105780.0,105770.0,1.71384243]
[1749304861617,0.03494772,105780.0,105770.0,2.09160243]
[1749304864717,0.01744772,105780.0,105770.0,2.09160243]
[1749304865218,0.01651177,105780.0,105770.0,2.09160243]
[1749304865442,0.01651177,105780.0,105770.0,1.71384243]
[1749304865644,0.03341177,105780.0,105770.0,2.09160243]
[1749304866551,0.03341177,105780.0,105770.0,2.03519043]
[1749304867582,0.03341177,105780.0,105770.0,0.85213135]
[1749304867781,0.03341177,105780.0,105770.0,1.26875804]
[1749304868029,0.03341177,105780.0,105770.0,1.65259189]
[1749304868358,0.03341177,105780.0,105770.0,1.5844343]
[1749304868980,0.03341177,105780.0,105770.0,1.2066743]
[1749304869245,0.03341177,105780.0,105770.0,1.5844343]
[1749304869513,0.03341177,105780.0,105770.0,1.2066743]
[1749304869758,0.03341177,105780.0,105770.0,1.5844343]
[1749304870002,0.03341177,105780.0,105770.0,1.2066743]
[1749304870236,0.03341177,105780.0,105770.0,1.5844343]
[1749304870960,0.06177116,105780.0,105770.0,0.53154476]
[1749304871192,0.05231767,105780.0,105770.0,0.87165376]
[1749304871438,0.05231767,105780.0,105770.0,0.8965433]
[1749304871610,0.04286463,105780.0,105770.0,0.87165376]
[1749304871809,0.04286454,105780.0,105770.0,0.87165376]
[1749304872368,0.05231749,105780.0,105770.0,0.87165376]
[1749304872575,0.03341177,105780.0,105770.0,0.87165376]
[1749304872963,0.05231794,105780.0,105770.0,0.87165376]
[1749304873169,0.05231785,105780.0,105770.0,0.87165376]
[1749304873390,0.05231785,105780.0,105770.0,0.84341187]
[1749304874037,0.04286472,105780.0,105770.0,0.84341187]
[1749304874489,0.04286472,105780.0,105770.0,0.46565187]
[1749304874755,0.05231785,105780.0,105770.0,0.84345187]
[1749304874971,0.06177116,105780.0,105770.0,0.46565187]
[1749304875191,0.06177116,105780.0,105770.0,0.84345187]
[1749304875402,0.07122456,105780.0,105770.0,0.84345187]
[1749304875639,0.05231785,105780.0,105770.0,0.84345187]
[1749304876238,0.05231785,105780.0,105770.0,0.84145187]
[1749304876444,0.05231785,105780.0,105770.0,0.84045187]
[1749304876946,0.04286472,105780.0,105770.0,0.84045187]
[1749304877146,0.04286472,105780.0,105770.0,0.46265187]
[1749304877347,0.05231785,105780.0,105770.0,0.84037187]
[1749304877786,0.05231776,105780.0,105770.0,0.84037187]
[1749304877985,0.06177098,105780.0,105770.0,0.84037187]
[1749304880398,0.06177089,105780.0,105770.0,0.46265187]
[1749304880675,0.06177089,105780.0,105770.0,0.84033187]
[1749304880851,0.07122429,105780.0,105770.0,0.84033187]
[1749304881008,0.0712242,105780.0,105770.0,0.84033187]
[1749304881462,0.06177089,105780.0,105770.0,0.84033187]
[1749304881665,0.06177089,105780.0,105770.0,0.46265187]
[1749304881870,0.0712242,105780.0,105770.0,0.84033187]
[1749304883629,0.0712242,105780.0,105770.0,0.46265187]
[1749304883877,0.0712242,105780.0,105770.0,0.84033187]
[1749304883878,0.0806776,105780.0,105770.0,0.84033187]
[1749304884406,0.07126465,105780.0,105770.0,0.83087802]
[1749304884591,0.06181125,105780.0,105770.0,0.84033187]
[1749304884795,0.05235758,105780.0,105770.0,0.84033187]
[1749304885003,0.04290454,105780.0,105770.0,0.84033187]
[1749304885216,0.05235749,105780.0,105770.0,0.84033187]
[1749304885412,0.05235749,105780.0,105770.0,0.46265187]
[1749304885614,0.05235749,105780.0,105770.0,1.24033187]
[1749304886557,0.04290454,105780.0,105770.0,1.24033187]
[1749304886760,0.05235749,105780.0,105770.0,1.24033187]
[1749304886984,0.06181062,105780.0,105770.0,1.24033187]
[1749304887182,0.05235749,105780.0,105770.0,1.24033187]
[1749304887385,0.05235749,105780.0,105770.0,0.86265187]
[1749304887505,0.05235749,105780.0,105770.0,1.24033187]
[1749304887716,0.06181062,105780.0,105770.0,1.24033187]
[1749304887917,0.06181071,105780.0,105770.0,1.24033187]
[1749304888126,0.06181062,105780.0,105770.0,1.24033187]
[1749304888752,0.05235749,105780.0,105770.0,1.24033187]
[1749304889272,0.06181053,105780.0,105770.0,1.24033187]
[1749304889694,0.08071724,105780.0,105770.0,1.24033187]
[1749304889878,0.07126375,105780.0,105770.0,1.24033187]
[1749304890363,0.08071715,105780.0,105770.0,1.24033187]
[1749304891248,1.09485514,105780.0,105770.0,0.4886]
[1749304891407,1.11253441,105780.0,105770.0,0.77768]
[1749304891768,1.09485514,105780.0,105770.0,0.77768]
[1749304891969,1.09485514,105780.0,105770.0,0.78713447]
[1749304892173,1.11253656,105780.0,105770.0,0.78713447]
[1749304892377,1.09485514,105780.0,105770.0,0.78713447]
[1749304892582,1.11353175,105780.0,105770.0,0.78713447]
[1749304893554,1.09685514,105780.0,105770.0,0.78713447]
[1749304893776,1.11453665,105780.0,105770.0,0.78713447]
[1749304894182,1.11453665,105780.0,105770.0,0.77768]
[1749304894385,1.11453665,105780.0,105770.0,0.37768]
[1749304894585,1.11453665,105780.0,105770.0,0.576224]
[1749304894987,1.09685514,105780.0,105770.0,0.98567838]
[1749304895207,1.11454047,105780.0,105770.0,0.99513267]
[1749304895413,1.11461217,105780.0,105770.0,0.98567838]
[1749304895619,1.11461217,105780.0,105770.0,0.99513267]
[1749304895839,1.11461209,105780.0,105770.0,0.99513267]
[1749304896447,1.09692684,105780.0,105770.0,0.99513267]
[1749304896649,1.11461192,105780.0,105770.0,0.99513267]
[1749304896857,1.09692684,105780.0,105770.0,0.99513267]
[1749304897059,1.11462437,105780.0,105770.0,0.99513267]
[1749304897273,1.11462431,105780.0,105770.0,0.99513267]
[1749304898268,1.09692684,105780.0,105770.0,1.00458687]
[1749304898531,1.11462251,105780.0,105770.0,1.00458687]
[1749304899144,1.11462617,105780.0,105770.0,1.00458687]
[1749304899348,1.11462615,105780.0,105770.0,1.00458687]
[1749304899529,1.11462605,105780.0,105770.0,1.00458687]
[1749304900307,1.11462605,105780.0,105770.0,1.01404089]
[1749304900885,1.09692684,105780.0,105770.0,1.01404089]
[1749304901195,1.11462963,105780.0,105770.0,1.01404089]
[1749304901396,0.15159163,105780.0,105770.0,1.35404089]
[1749304901599,0.3501167,105780.0,105770.0,1.35404089]
[1749304901828,0.17995212,105780.0,105770.0,1.35404036]
[1749304902063,0.17995212,105780.0,105770.0,1.35400036]
[1749304902263,0.18940534,105780.0,105770.0,1.00454642]
[1749304902887,0.37847921,105780.0,105770.0,1.00454642]
[1749304903303,0.18504089,105780.0,105770.0,1.01400027]
[1749304903521,0.19449429,105780.0,105770.0,1.01400027]
[1749304903738,0.1755878,105780.0,105770.0,1.01400027]
[1749304903941,0.04169869,105780.0,105770.0,0.62690642]
[1749304904143,0.06060466,105780.0,105770.0,1.01399983]
[1749304904347,0.11411155,105780.0,105770.0,1.01399983]
[1749304904522,0.10465806,105780.0,105770.0,1.01399983]
[1749304904754,0.08695319,105780.0,105770.0,1.01399983]
[1749304904955,0.10465806,105780.0,105770.0,1.01399983]
[1749304905268,0.10465753,105780.0,105770.0,1.01399983]
[1749304905470,0.10465884,105780.0,105770.0,1.01399983]
[1749304905916,0.07749979,105780.0,105770.0,1.01399983]
[1749304906122,0.08695319,105780.0,105770.0,1.01399983]
[1749304906368,0.10465863,105780.0,105770.0,1.01399983]
[1749304907130,0.68683461,105780.0,105770.0,0.67760953]
[1749304907316,0.68683461,105780.0,105770.0,0.98555802]
[1749304907520,0.6868388,105780.0,105770.0,0.98555802]
[1749304907653,0.66912917,105780.0,105770.0,0.99501204]
[1749304907852,0.68683879,105780.0,105770.0,0.99501204]
[1749304908859,0.67738557,105780.0,105770.0,0.9855582]
[1749304909064,0.65967595,105780.0,105770.0,0.99501231]
[1749304909262,0.67738639,105780.0,105770.0,1.00446633]
[1749304909400,0.65967595,105780.0,105770.0,0.97610391]
[1749304909606,0.67738642,105780.0,105770.0,0.97610391]
[1749304909805,0.67738642,105780.0,105770.0,0.77756]
[1749304910105,0.66793302,105780.0,105770.0,0.77756]
[1749304910306,0.66793508,105780.0,105770.0,0.77756]
[1749304910955,0.65022255,105780.0,105770.0,0.77756]
[1749304911176,0.66793512,105780.0,105770.0,0.77756]
[1749304912001,0.66793826,105780.0,105770.0,0.77756]
[1749304912542,0.65022255,105780.0,105770.0,0.97610391]
[1749304912769,0.65848725,105780.0,105770.0,0.97610391]
[1749304912971,0.6584873,105780.0,105770.0,0.97610391]
[1749304913512,0.6584873,105780.0,105770.0,0.77756]
[1749304913797,1.04332544,105780.0,105770.0,0.77756]
[1749304914015,0.98076897,105780.0,105770.0,0.77756]
[1749304914511,0.99848781,105780.0,105770.0,0.77756]
[1749304914741,0.99848782,105780.0,105770.0,0.77756]
[1749304915364,0.02836449,105760.0,105750.0,0.4909751]
[1749304915638,0.0283644,105760.0,105750.0,1.27105157]
[1749304915841,0.0283644,105760.0,105750.0,1.67105157]
[1749304916208,0.0283644,105760.0,105750.0,1.66159603]
[1749304916209,0.03781968,105760.0,105750.0,1.66159603]
[1749304916416,0.03781968,105760.0,105750.0,1.63335329]
[1749304916615,0.03781968,105760.0,105750.0,1.63735329]
[1749304916818,0.03781968,105760.0,105750.0,1.23479682]
[1749304917025,0.05471959,105760.0,105750.0,1.23479682]
[1749304917265,0.05471959,105760.0,105750.0,0.85727736]
[1749304917266,0.24382772,105760.0,105750.0,0.85727736]
[1749304917397,0.26072772,105760.0,105750.0,1.24177317]
[1749304917597,0.26072772,105760.0,105750.0,1.25122889]
[1749304917796,1.00328419,105760.0,105750.0,0.64924]
[1749304918016,1.00209933,105760.0,105750.0,0.73776]
[1749304918218,1.00209933,105760.0,105750.0,1.02676]
[1749304918654,1.00208817,105760.0,105750.0,1.02476]
[1749304918871,1.00208817,105760.0,105750.0,1.02576]
[1749304919083,0.98437435,105760.0,105750.0,1.02276]
[1749304919289,1.00208817,105760.0,105750.0,1.02276]
[1749304919599,1.00308817,105760.0,105750.0,1.02376]
[1749304919799,0.98537435,105760.0,105750.0,1.02376]
[1749304920018,1.00308817,105760.0,105750.0,1.02276]
[1749304920217,0.98537435,105760.0,105750.0,1.02276]
[1749304920416,0.98637435,105760.0,105750.0,1.02276]
[1749304921338,0.58381788,105760.0,105750.0,1.02276]
[1749304922540,1.00106179,105760.0,105750.0,0.64524]
[1749304922741,1.09746127,105760.0,105750.0,0.7338]
[1749304922984,1.09746127,105760.0,105750.0,1.0228]
[1749304923216,0.19860016,105740.0,105720.0,0.25973563]
[1749304923342,0.19860016,105740.0,105720.0,0.24528]
[1749304923343,0.23644925,105730.0,105720.0,0.24528]
[1749304923554,0.2080769,105730.0,105720.0,0.33384]
[1749304923759,0.2415769,105730.0,105720.0,0.73384]
[1749304924032,0.23211903,105730.0,105720.0,1.0228]
[1749304924434,0.23211903,105730.0,105720.0,1.03225894]
[1749304924757,0.24148863,105730.0,105720.0,1.22191586]
[1749304924956,0.98419169,105730.0,105720.0,0.64675796]
[1749304925099,0.98419169,105730.0,105720.0,1.02531796]
[1749304925912,0.98419169,105730.0,105720.0,0.64775796]
[1749304926101,1.09513202,105730.0,105720.0,1.02531796]
[1749304926305,1.09513202,105730.0,105720.0,0.64775796]
[1749304926513,5.72263808,105730.0,105720.0,0.00147796]
[1749304926722,5.34824555,105730.0,105720.0,0.00147796]
[1749304926929,5.34824555,105730.0,105720.0,0.00239043]
[1749304927144,5.31993502,105730.0,105720.0,0.00239043]
[1749304927348,5.31993502,105730.0,105720.0,0.00139043]
[1749304927560,5.44461149,105730.0,105720.0,0.00039043]
[1749304927763,5.44561149,105730.0,105720.0,0.00039043]
[1749304928182,5.81903756,105730.0,105720.0,0.00039043]
[1749304928379,5.82403756,105730.0,105720.0,0.00039043]
[1749304929032,5.4213345,105730.0,105720.0,0.00039043]
[1749304929281,5.82403756,105730.0,105720.0,0.00039043]
[1749304929742,5.4263345,105730.0,105720.0,0.00039043]
[1749304930666,5.82903756,105730.0,105720.0,0.00039043]
[1749304932423,0.61267644,105700.0,105690.0,0.08856]
[1749304932644,5.27168198,105700.0,105690.0,0.37773565]
[1749304933261,5.27168198,105700.0,105690.0,0.08869565]
[1749304933500,5.27368198,105700.0,105690.0,0.37773565]
[1749304934557,5.27368198,105700.0,105690.0,0.37777565]
[1749304935615,0.71107627,105700.0,105690.0,0.56700831]
[1749304935918,0.70161572,105700.0,105690.0,0.57646985]
[1749304936137,0.70161572,105700.0,105690.0,0.56700831]
[1749304936348,0.70161572,105700.0,105690.0,0.58593148]
[1749304936547,0.69215508,105700.0,105690.0,0.56700831]
[1749304936746,0.64215508,105700.0,105690.0,0.57646976]
[1749304937166,0.6710196,105700.0,105690.0,0.58593148]
[1749304937571,0.68047971,105700.0,105690.0,0.58593148]
[1749304937782,0.69940072,105700.0,105690.0,0.59539284]
[1749304937982,0.69940072,105700.0,105690.0,0.60485411]
[1749304938277,0.69940072,105700.0,105690.0,0.59539293]
[1749304938475,0.68994061,105700.0,105690.0,0.59539293]
[1749304939081,0.50072586,105700.0,105690.0,0.59539293]
[1749304939293,0.50072533,105700.0,105690.0,0.6497152]
[1749304939457,0.69940063,105700.0,105690.0,0.63079293]
[1749304939657,0.69940125,105700.0,105690.0,0.62133148]
[1749304939858,0.68994088,105700.0,105690.0,0.38723728]
[1749304940070,0.68994088,105700.0,105690.0,0.78723728]
[1749304940247,0.68994088,105700.0,105690.0,0.98593139]
[1749304940451,0.68994088,105700.0,105690.0,0.97646994]
[1749304940944,0.68994088,105700.0,105690.0,0.98593148]
[1749304941150,0.57900055,105700.0,105690.0,1.03079293]
[1749304941350,0.57900055,105700.0,105690.0,1.02133148]
[1749304941806,0.57900055,105700.0,105690.0,0.79547565]
[1749304942014,0.57900055,105700.0,105690.0,0.77777565]
[1749304942421,0.56954,105700.0,105690.0,0.77777565]
[1749304944031,0.97224306,105700.0,105690.0,0.48869565]
[1749304944245,0.99054306,105700.0,105690.0,0.77781565]
[1749304944676,1.11918339,105700.0,105690.0,0.40013565]
[1749304944914,1.11918339,105700.0,105690.0,0.77777565]
[1749304945135,1.11918339,105700.0,105690.0,0.37777565]
[1749304945574,1.11918339,105700.0,105690.0,0.77777565]
[1749304946004,0.71648033,105700.0,105690.0,0.77777565]
[1749304946208,1.10148339,105700.0,105690.0,0.77777565]
[1749304948146,0.69878033,105700.0,105690.0,0.77777565]
[1749304948350,1.10148339,105700.0,105690.0,0.77777565]
[1749304948561,1.10148339,105700.0,105690.0,0.37777565]
[1749304948999,1.10148339,105700.0,105690.0,0.77777565]
[1749304951693,1.08318339,105700.0,105690.0,0.77777565]
[1749304951832,1.08318339,105700.0,105690.0,0.37777565]
[1749304952038,1.10148339,105700.0,105690.0,0.37777565]
[1749304952548,1.10148339,105700.0,105690.0,0.77777565]
[1749304953107,1.11948339,105700.0,105690.0,0.77777565]
[1749304954118,1.11952339,105700.0,105690.0,0.77777565]
[1749304954291,1.10152339,105700.0,105690.0,0.77777565]
[1749304955433,1.11952339,105700.0,105690.0,0.00013565]
[1749304955746,5.27260338,105700.0,105690.0,0.28921565]
[1749304955953,5.32260338,105700.0,105690.0,0.28921565]
[1749304956182,5.40995623,105700.0,105690.0,0.00013565]
[1749304956392,6.42711735,105700.0,105690.0,0.00013565]
[1749304956813,6.38934333,105700.0,105690.0,0.00013565]
[1749304957030,5.89104333,105700.0,105690.0,0.00013565]
[1749304957232,5.8343823,105700.0,105690.0,0.00013565]
[1749304957436,0.40454085,105690.0,105680.0,0.28908]
[1749304957638,5.42804563,105690.0,105680.0,0.28922345]
[1749304957844,5.42804563,105690.0,105680.0,0.00014345]
[1749304958047,5.44578666,105690.0,105680.0,0.28922345]
[1749304958652,5.42804563,105690.0,105680.0,0.00014345]
[1749304958834,5.84846777,105690.0,105680.0,0.00014345]
[1749304959060,5.83074869,105690.0,105680.0,0.00014345]
[1749304959267,5.87889178,105690.0,105680.0,0.00014345]
[1749304959986,5.86117213,105690.0,105680.0,0.00014345]
[1749304960398,0.00946315,105670.0,105650.0,0.48856]
[1749304960577,0.74125779,105660.0,105650.0,0.48860772]
[1749304960750,0.74125779,105660.0,105650.0,0.77772772]
[1749304961160,1.14396085,105660.0,105650.0,4.772e-05]
[1749304961360,5.28696385,105660.0,105650.0,0.28916772]
[1749304961760,4.88426079,105660.0,105650.0,0.29016772]
[1749304963430,4.88426079,105660.0,105650.0,0.29316772]
[1749304963634,4.89370969,105660.0,105650.0,0.29316772]
[1749304966329,4.49100663,105660.0,105650.0,0.29316772]
[1749304966524,4.89370969,105660.0,105650.0,0.29316772]
[1749304966934,4.87550969,105660.0,105650.0,0.29316772]
[1749304968725,0.0094489,105660.0,105650.0,1.35066963]
[1749304968944,0.36839179,105660.0,105650.0,0.94796657]
[1749304969161,0.37785601,105660.0,105650.0,0.94796657]
[1749304969851,0.5671424,105660.0,105650.0,0.92903714]
[1749304970062,0.56714302,105660.0,105650.0,0.64938217]
[1749304970277,0.56714302,105660.0,105650.0,0.94800711]
[1749304970508,0.36854313,105660.0,105650.0,0.96693654]
[1749304970940,0.56729374,105660.0,105650.0,0.95747187]
[1749304972540,0.96053284,105660.0,105650.0,0.99013202]
[1749304972758,0.96053284,105660.0,105650.0,0.99959723]
[1749304973009,0.96053284,105660.0,105650.0,1.00906226]
[1749304973632,0.9510687,105660.0,105650.0,0.99959723]
[1749304974068,0.9510687,105660.0,105650.0,1.01852738]
[1749304974310,0.9510687,105660.0,105650.0,1.02799232]
[1749304974520,0.9510687,105660.0,105650.0,1.04599232]
[1749304974736,0.36854321,105660.0,105650.0,1.05545717]
[1749304974941,0.38747069,105660.0,105650.0,1.05545654]
[1749304975811,0.38747069,105660.0,105650.0,1.4581596]
[1749304975812,0.34,105660.0,105650.0,1.4581596]
[1749304976024,0.0378526,105670.0,105660.0,0.2541646]
[1749304976232,0.35892549,105670.0,105660.0,0.55278829]
[1749304976436,0.34946261,105670.0,105660.0,0.55278829]
[1749304976641,0.3589254,105670.0,105660.0,0.95278829]
[1749304976834,0.34946261,105670.0,105660.0,0.95278829]
[1749304977053,0.01892442,105680.0,105670.0,0.25415765]
[1749304977183,0.35892371,105680.0,105670.0,0.34267765]
[1749304977385,0.3683857,105680.0,105670.0,0.34267765]
[1749304977586,0.37784813,105680.0,105670.0,0.34267765]
[1749304977823,0.37784813,105680.0,105670.0,0.74267765]
[1749304978026,0.38712702,105680.0,105670.0,0.74267765]
[1749304978224,0.39658954,105680.0,105670.0,0.74267765]
[1749304978458,0.37784813,105680.0,105670.0,0.74267765]
[1749304978660,0.38731056,105680.0,105670.0,0.74267765]
[1749304979295,0.54817533,105680.0,105670.0,0.7237518]
[1749304979514,0.54817533,105680.0,105670.0,0.73321504]
[1749304979922,0.95087839,105680.0,105670.0,1.02233504]
[1749304980153,0.95087839,105680.0,105670.0,1.03179819]
[1749304980364,0.54817533,105680.0,105670.0,1.04126125]
[1749304980564,0.54817533,105680.0,105670.0,1.05072422]
[1749304980780,0.35892477,105680.0,105670.0,1.05072377]
[1749304980985,0.35892477,105680.0,105670.0,1.05072332]
[1749304980986,0.34946181,105680.0,105670.0,1.05072332]
[1749304981204,0.3494619,105680.0,105670.0,1.05072332]
[1749304981893,0.34946181,105680.0,105670.0,1.05072332]
[1749304982408,0.00944337,105690.0,105680.0,0.25633706]
[1749304982617,0.66721753,105700.0,105690.0,0.25631638]
[1749304982837,0.76361701,105700.0,105690.0,0.61503411]
[1749304983045,0.77316415,105700.0,105690.0,0.62449547]
[1749304983247,0.76197767,105700.0,105690.0,0.62449547]
[1749304983524,0.75243053,105700.0,105690.0,0.39674]
[1749304983704,0.75243053,105700.0,105690.0,0.60489565]
[1749304983863,0.75443053,105700.0,105690.0,0.39678772]
[1749304984064,0.74496425,105700.0,105690.0,0.58602038]
[1749304984264,0.72729203,105700.0,105690.0,0.59548192]
[1749304984551,0.72729203,105700.0,105690.0,0.39678772]
[1749304984705,1.1476711,105700.0,105690.0,0.39678772]
[1749304985106,1.07203529,105700.0,105690.0,0.40624935]
[1749304985311,1.06257456,105700.0,105690.0,0.40624935]
[1749304985516,1.04489855,105700.0,105690.0,0.59548201]
[1749304985682,1.06457456,105700.0,105690.0,0.59548201]
[1749304986035,1.04689855,105700.0,105690.0,0.59548201]
[1749304986242,1.06457646,105700.0,105690.0,0.60494355]
[1749304986403,1.06457646,105700.0,105690.0,0.59548201]
[1749304986603,0.6618734,105700.0,105690.0,0.99548201]
[1749304986804,0.6618734,105700.0,105690.0,0.79678772]
[1749304987016,0.67109733,105700.0,105690.0,0.77768772]
[1749304987222,1.07380039,105700.0,105690.0,0.77768772]
[1749304987643,1.07552248,105700.0,105690.0,0.77768772]
[1749304987968,1.09319008,105700.0,105690.0,0.77768772]
[1749304989561,1.09318592,105700.0,105690.0,0.77768772]
[1749304989796,1.09318344,105700.0,105690.0,0.77768772]
[1749304990008,1.09318344,105700.0,105690.0,0.37768772]
[1749304990212,1.11278345,105700.0,105690.0,0.37764772]
[1749304990435,1.11278384,105700.0,105690.0,0.77764772]
[1749304990636,1.11278384,105700.0,105690.0,0.37764772]
[1749304991547,1.09512248,105700.0,105690.0,0.37764772]
[1749304991791,1.1127856,105700.0,105690.0,0.37764772]
[1749304992478,1.09512248,105700.0,105690.0,0.37764772]
[1749304992699,1.11278715,105700.0,105690.0,0.37764772]
[1749304993588,1.11278715,105700.0,105690.0,4.772e-05]
[1749304993817,5.28759377,105700.0,105690.0,0.28908772]
[1749304994018,5.28759436,105700.0,105690.0,0.28908772]
[1749304994224,5.33759436,105700.0,105690.0,0.28908772]
[1749304994843,5.28759436,105700.0,105690.0,0.28908772]
[1749304995076,5.33759791,105700.0,105690.0,0.28908772]
[1749304995707,5.33760409,105700.0,105690.0,0.28908772]
[1749304996938,5.33760707,105700.0,105690.0,0.28908772]
[1749304997543,5.33761709,105700.0,105690.0,0.28908772]
[1749304997979,5.33761965,105700.0,105690.0,0.28908772]
[1749304998181,5.31992548,105700.0,105690.0,0.28908772]
[1749304998395,5.28761966,105700.0,105690.0,0.28908772]
[1749304998599,5.33761965,105700.0,105690.0,0.28908772]
[1749304998863,5.31992548,105700.0,105690.0,0.28908772]
[1749304999055,5.33761966,105700.0,105690.0,0.28908772]
[1749304999272,4.93491659,105700.0,105690.0,0.28908772]
[1749304999435,5.33761965,105700.0,105690.0,0.28908772]
[1749305000308,5.33762322,105700.0,105690.0,0.28908772]
[1749305001830,5.33762305,105700.0,105690.0,0.28908772]
[1749305002482,5.36596327,105700.0,105690.0,0.28908772]
[1749305002917,5.34825518,105700.0,105690.0,0.28908772]
[1749305003343,5.36596327,105700.0,105690.0,0.28908772]
[1749305003986,5.36596498,105700.0,105690.0,0.28908772]
[1749305004450,5.34825518,105700.0,105690.0,0.28908772]
[1749305004664,5.36597981,105700.0,105690.0,0.28908772]
[1749305005081,5.36597981,105700.0,105690.0,4.772e-05]
[1749305005324,5.36598063,105700.0,105690.0,0.28908772]
[1749305006063,4.96327757,105700.0,105690.0,0.28908772]
[1749305006279,5.36598063,105700.0,105690.0,0.28908772]
[1749305006502,5.34825518,105700.0,105690.0,0.28908772]
[1749305006978,4.96328087,105700.0,105690.0,0.28908772]
[1749305007207,5.36598393,105700.0,105690.0,0.28908772]
[1749305007422,5.34825518,105700.0,105690.0,0.28908772]
[1749305007612,5.36598441,105700.0,105690.0,0.28908772]
[1749305008043,0.05932286,105700.0,105690.0,1.01762292]
[1749305008261,0.02176763,105700.0,105690.0,1.69418979]
[1749305008471,0.00404,105700.0,105690.0,1.69418979]
[1749305008670,0.00404,105700.0,105690.0,2.13184079]
[1749305008782,0.00404,105700.0,105690.0,1.72913773]
[1749305008983,0.00204,105700.0,105690.0,1.72913773]
[1749305009184,4e-05,105700.0,105690.0,1.73213773]
[1749305009423,4e-05,105700.0,105690.0,1.69648673]
[1749305009633,4e-05,105700.0,105690.0,1.69348673]
[1749305009899,4e-05,105700.0,105690.0,1.7217713]
[1749305010100,4e-05,105700.0,105690.0,1.7257713]
[1749305010453,4e-05,105700.0,105690.0,1.69748673]
[1749305010829,4e-05,105700.0,105690.0,1.69548673]
[1749305011028,4e-05,105700.0,105690.0,1.00774367]
[1749305011228,4e-05,105700.0,105690.0,1.29906367]
[1749305011423,4e-05,105700.0,105690.0,1.29114419]
[1749305013572,4e-05,105700.0,105690.0,1.29098419]
[1749305015603,4e-05,105700.0,105690.0,0.89242192]
[1749305015825,0.77112409,105700.0,105690.0,1.26016546]
[1749305016039,0.78880454,105700.0,105690.0,1.26016546]
[1749305016258,0.79826518,105700.0,105690.0,1.26016546]
[1749305016466,0.98747993,105700.0,105690.0,1.25070446]
[1749305016687,0.9969415,105700.0,105690.0,1.25070446]
[1749305016903,0.78880538,105700.0,105690.0,1.26016546]
[1749305017138,0.38609978,105700.0,105690.0,1.26016546]
[1749305017564,0.36842103,105700.0,105690.0,1.26016546]
[1749305020831,0.37788167,105700.0,105690.0,1.26016546]
[1749305021021,0.36842103,105700.0,105690.0,1.26016546]
[1749305021241,0.34950011,105700.0,105690.0,1.29816546]
[1749305021366,0.34004,105700.0,105690.0,1.29816546]